[Event "Late-Titled-Tuesday-Blitz-May-07-2024"]
[Site "Chess.com"]
[Date "2024.05.07"]
[Round "9"]
[White "robertoalejandro10"]
[Black "GlavkonVVS"]
[Result "1/2-1/2"]
[WhiteElo "2511"]
[BlackElo "2657"]
[TimeControl "180+1"]
[EndTime "15:45:20 PDT"]
[Termination "Game drawn by repetition"]

1. Nf3 {[%clk 0:03:00.9]} 1... c5 {[%clk 0:02:59.1]} 2. c4 {[%clk 0:02:59.9]}
2... Nf6 {[%clk 0:02:59.1]} 3. g3 {[%clk 0:02:59]} 3... d6 {[%clk 0:02:58.5]} 4.
Bg2 {[%clk 0:02:59.4]} 4... Nc6 {[%clk 0:02:58.1]} 5. O-O {[%clk 0:02:59.9]}
5... e6 {[%clk 0:02:58.5]} 6. b3 {[%clk 0:02:58.6]} 6... Be7 {[%clk 0:02:58]} 7.
Bb2 {[%clk 0:02:59.1]} 7... O-O {[%clk 0:02:57.6]} 8. Nc3 {[%clk 0:02:59.7]}
8... a6 {[%clk 0:02:57.8]} 9. d4 {[%clk 0:02:59.8]} 9... cxd4 {[%clk 0:02:57.7]}
10. Nxd4 {[%clk 0:03:00.7]} 10... Bd7 {[%clk 0:02:58.2]} 11. Qd2 {[%clk
0:03:00.9]} 11... Rc8 {[%clk 0:02:58.3]} 12. Rfd1 {[%clk 0:03:01.1]} 12... Qc7
{[%clk 0:02:56.2]} 13. Rac1 {[%clk 0:03:00.4]} 13... Qb8 {[%clk 0:02:56.4]} 14.
Ne4 {[%clk 0:02:54.1]} 14... Nxe4 {[%clk 0:02:42.3]} 15. Bxe4 {[%clk 0:02:52]}
15... Rfd8 {[%clk 0:02:38.2]} 16. h4 {[%clk 0:02:00.9]} 16... Nxd4 {[%clk
0:02:31.4]} 17. Bxd4 {[%clk 0:01:53.7]} 17... Bc6 {[%clk 0:02:30]} 18. Bxc6
{[%clk 0:00:56.5]} 18... bxc6 {[%clk 0:02:29.9]} 19. Bb2 {[%clk 0:00:54.8]}
19... d5 {[%clk 0:02:27.3]} 20. cxd5 {[%clk 0:00:50.5]} 20... cxd5 {[%clk
0:02:26.7]} 21. Rxc8 {[%clk 0:00:49.5]} 21... Rxc8 {[%clk 0:02:26.3]} 22. Rc1
{[%clk 0:00:49.9]} 22... Bf8 {[%clk 0:02:21.4]} 23. e3 {[%clk 0:00:49.2]} 23...
Rc7 {[%clk 0:02:06.3]} 24. Rxc7 {[%clk 0:00:35.8]} 24... Qxc7 {[%clk 0:02:06.3]}
25. Qd3 {[%clk 0:00:36.7]} 25... Qc6 {[%clk 0:02:05.7]} 26. Bc3 {[%clk
0:00:35.4]} 26... f6 {[%clk 0:02:04.4]} 27. h5 {[%clk 0:00:29.3]} 27... e5
{[%clk 0:01:52.8]} 28. Qd2 {[%clk 0:00:26.4]} 28... Qb5 {[%clk 0:01:39.8]} 29.
Bb2 {[%clk 0:00:25.5]} 29... g6 {[%clk 0:01:23.7]} 30. hxg6 {[%clk 0:00:25.3]}
30... hxg6 {[%clk 0:01:23.6]} 31. Qc2 {[%clk 0:00:26]} 31... Kf7 {[%clk
0:01:22.3]} 32. Qc7+ {[%clk 0:00:25.3]} 32... Kg8 {[%clk 0:01:17.1]} 33. Qc8
{[%clk 0:00:20.9]} 33... Kf7 {[%clk 0:01:11.2]} 34. Qc7+ {[%clk 0:00:20.2]}
34... Ke6 {[%clk 0:01:09.3]} 35. Qc8+ {[%clk 0:00:19.6]} 35... Kf7 {[%clk
0:01:09.5]} 36. Qc7+ {[%clk 0:00:19.8]} 1/2-1/2

[Event "Late-Titled-Tuesday-Blitz-May-07-2024"]
[Site "Chess.com"]
[Date "2024.05.07"]
[Round "9"]
[White "eljanov"]
[Black "Oleg_Papayan"]
[Result "1-0"]
[WhiteElo "2858"]
[BlackElo "2646"]
[TimeControl "180+1"]
[EndTime "15:45:29 PDT"]
[Termination "eljanov won on time"]

1. d4 {[%clk 0:03:00.9]} 1... d5 {[%clk 0:02:56.5]} 2. Bf4 {[%clk 0:03:00.3]}
2... Nf6 {[%clk 0:02:55.2]} 3. e3 {[%clk 0:03:00.5]} 3... c5 {[%clk 0:02:55.4]}
4. Nf3 {[%clk 0:03:00.3]} 4... Nc6 {[%clk 0:02:54.8]} 5. Nbd2 {[%clk 0:03:01]}
5... Qb6 {[%clk 0:02:53]} 6. dxc5 {[%clk 0:03:01.1]} 6... Qxb2 {[%clk
0:02:53.2]} 7. Rb1 {[%clk 0:03:01]} 7... Qc3 {[%clk 0:02:53.2]} 8. Bb5 {[%clk
0:02:54]} 8... g6 {[%clk 0:02:47.9]} 9. O-O {[%clk 0:02:52.7]} 9... Bg7 {[%clk
0:02:46.9]} 10. Nd4 {[%clk 0:02:48.5]} 10... Bd7 {[%clk 0:02:38.3]} 11. N2b3
{[%clk 0:02:29.9]} 11... O-O {[%clk 0:01:54.8]} 12. Ne2 {[%clk 0:02:19.2]} 12...
Qb4 {[%clk 0:01:48.2]} 13. a4 {[%clk 0:02:17.9]} 13... a6 {[%clk 0:01:32.9]} 14.
c3 {[%clk 0:02:06]} 14... Qe4 {[%clk 0:01:17]} 15. f3 {[%clk 0:01:48.5]} 15...
Qxb1 {[%clk 0:00:37.6]} 16. Qxb1 {[%clk 0:01:47.5]} 16... axb5 {[%clk
0:00:38.5]} 17. axb5 {[%clk 0:01:47.1]} 17... Na5 {[%clk 0:00:37.6]} 18. Nxa5
{[%clk 0:01:38.3]} 18... Rxa5 {[%clk 0:00:38.5]} 19. Nd4 {[%clk 0:01:38.6]}
19... Nh5 {[%clk 0:00:25.9]} 20. c6 {[%clk 0:01:33.9]} 20... Bc8 {[%clk
0:00:11.9]} 21. Bc7 {[%clk 0:01:32.1]} 21... Ra3 {[%clk 0:00:09.2]} 22. Qb4
{[%clk 0:01:30.3]} 22... Ra2 {[%clk 0:00:09.7]} 23. cxb7 {[%clk 0:01:24.2]}
23... Bxb7 {[%clk 0:00:09.9]} 24. Qxe7 {[%clk 0:01:24.3]} 24... Bf6 {[%clk
0:00:04.9]} 25. Qd6 {[%clk 0:01:20.2]} 25... Bg7 {[%clk 0:00:01.9]} 26. Qb6
{[%clk 0:01:03.9]} 26... Bc8 {[%clk 0:00:01.2]} 27. Bd6 {[%clk 0:01:03.3]} 27...
Re8 {[%clk 0:00:01.2]} 28. Qc6 {[%clk 0:01:03.7]} 1-0

[Event "Late-Titled-Tuesday-Blitz-May-07-2024"]
[Site "Chess.com"]
[Date "2024.05.07"]
[Round "9"]
[White "nochewycandy"]
[Black "bazar-wokzal"]
[Result "0-1"]
[WhiteElo "2761"]
[BlackElo "2609"]
[TimeControl "180+1"]
[EndTime "15:45:31 PDT"]
[Termination "bazar-wokzal won by resignation"]

1. e4 {[%clk 0:01:06]} 1... Nc6 {[%clk 0:02:25.3]} 2. b3 {[%clk 0:01:01.9]} 2...
d5 {[%clk 0:02:21.7]} 3. exd5 {[%clk 0:01:02]} 3... Qxd5 {[%clk 0:02:21.5]} 4.
Bb2 {[%clk 0:01:02.7]} 4... Nf6 {[%clk 0:02:20.2]} 5. h3 {[%clk 0:01:01.4]} 5...
Bf5 {[%clk 0:02:16.7]} 6. Nf3 {[%clk 0:01:00.4]} 6... O-O-O {[%clk 0:02:13.2]}
7. d3 {[%clk 0:01:00.9]} 7... e5 {[%clk 0:02:10.9]} 8. Nbd2 {[%clk 0:01:01.2]}
8... Bb4 {[%clk 0:02:03.7]} 9. a3 {[%clk 0:00:58.8]} 9... Bxd2+ {[%clk
0:02:00.4]} 10. Nxd2 {[%clk 0:00:59.7]} 10... Rhe8 {[%clk 0:01:57.4]} 11. f3
{[%clk 0:00:50.4]} 11... h5 {[%clk 0:01:36.3]} 12. Ne4 {[%clk 0:00:48.8]} 12...
Nd4 {[%clk 0:01:23.9]} 13. Be2 {[%clk 0:00:32.3]} 13... Nxe4 {[%clk 0:01:03.5]}
14. fxe4 {[%clk 0:00:28.3]} 14... Bxe4 {[%clk 0:01:03.7]} 15. dxe4 {[%clk
0:00:23.8]} 15... Qxe4 {[%clk 0:01:04.6]} 16. Bxd4 {[%clk 0:00:23.4]} 16... Rxd4
{[%clk 0:00:56.3]} 17. Qc1 {[%clk 0:00:16.3]} 17... Qxg2 {[%clk 0:00:55.6]} 18.
Rf1 {[%clk 0:00:13.7]} 18... Qg3+ {[%clk 0:00:49.6]} 19. Rf2 {[%clk 0:00:13.8]}
19... Rf4 {[%clk 0:00:49.5]} 20. Qxf4 {[%clk 0:00:07]} 20... exf4 {[%clk
0:00:49.3]} 21. O-O-O {[%clk 0:00:07.5]} 21... Qxf2 {[%clk 0:00:47.2]} 22. Bxh5
{[%clk 0:00:08.2]} 22... g6 {[%clk 0:00:42.6]} 23. Bg4+ {[%clk 0:00:07.4]} 23...
f5 {[%clk 0:00:42.6]} 0-1

[Event "Late-Titled-Tuesday-Blitz-May-07-2024"]
[Site "Chess.com"]
[Date "2024.05.07"]
[Round "9"]
[White "FairChess_on_YouTube"]
[Black "ContrVersia"]
[Result "1-0"]
[WhiteElo "3080"]
[BlackElo "2911"]
[TimeControl "180+1"]
[EndTime "15:45:40 PDT"]
[Termination "FairChess_on_YouTube won by resignation"]

1. d4 {[%clk 0:03:00.9]} 1... d5 {[%clk 0:02:58.2]} 2. c4 {[%clk 0:03:01.1]}
2... c6 {[%clk 0:02:58.3]} 3. Nf3 {[%clk 0:03:01.4]} 3... Nf6 {[%clk 0:02:58.3]}
4. Nc3 {[%clk 0:03:01.9]} 4... dxc4 {[%clk 0:02:58.3]} 5. e4 {[%clk 0:03:00.1]}
5... b5 {[%clk 0:02:58]} 6. Be2 {[%clk 0:03:00.7]} 6... e6 {[%clk 0:02:53.9]} 7.
O-O {[%clk 0:03:00.7]} 7... Bb7 {[%clk 0:02:53.5]} 8. Rb1 {[%clk 0:03:00.4]}
8... Be7 {[%clk 0:02:50.5]} 9. b3 {[%clk 0:03:00]} 9... cxb3 {[%clk 0:02:50.1]}
10. Rxb3 {[%clk 0:02:59.8]} 10... a6 {[%clk 0:02:45.9]} 11. e5 {[%clk 0:02:55]}
11... Nd5 {[%clk 0:02:45.4]} 12. Nxd5 {[%clk 0:02:54.9]} 12... cxd5 {[%clk
0:02:43.6]} 13. h4 {[%clk 0:02:53.5]} 13... Nc6 {[%clk 0:02:41]} 14. Bg5 {[%clk
0:02:31.1]} 14... h6 {[%clk 0:02:39]} 15. Bxe7 {[%clk 0:02:30.5]} 15... Qxe7
{[%clk 0:02:39.9]} 16. Qd2 {[%clk 0:02:26.6]} 16... O-O {[%clk 0:02:37.1]} 17.
Qf4 {[%clk 0:02:07.8]} 17... f6 {[%clk 0:02:30]} 18. exf6 {[%clk 0:02:03.1]}
18... Rxf6 {[%clk 0:02:28.4]} 19. Qg3 {[%clk 0:02:00.6]} 19... Raf8 {[%clk
0:02:09.3]} 20. Rc1 {[%clk 0:01:59.9]} 20... R8f7 {[%clk 0:01:22.9]} 21. Rbc3
{[%clk 0:01:53.3]} 21... Qe8 {[%clk 0:01:09]} 22. Rxc6 {[%clk 0:01:41.3]} 22...
Bxc6 {[%clk 0:01:07.4]} 23. Ne5 {[%clk 0:01:41.9]} 23... Rc7 {[%clk 0:00:51.4]}
24. Ng4 {[%clk 0:01:40.3]} 24... Rcf7 {[%clk 0:00:07.3]} 25. Ne5 {[%clk
0:01:40.4]} 25... Rc7 {[%clk 0:00:06.8]} 26. Bd3 {[%clk 0:01:41]} 26... Rc8
{[%clk 0:00:02.9]} 27. Ng4 {[%clk 0:01:40.4]} 27... Qf8 {[%clk 0:00:02]} 28.
Nxf6+ {[%clk 0:01:25.9]} 28... Qxf6 {[%clk 0:00:02.9]} 29. Rxc6 {[%clk
0:01:18.4]} 29... Rxc6 {[%clk 0:00:02]} 30. Qb8+ {[%clk 0:01:19]} 30... Qf8
{[%clk 0:00:02.5]} 31. Bh7+ {[%clk 0:01:18.8]} 31... Kf7 {[%clk 0:00:03]} 32.
Qb7+ {[%clk 0:01:19.4]} 32... Kf6 {[%clk 0:00:02.6]} 33. Qxc6 {[%clk 0:01:20]}
33... Qb4 {[%clk 0:00:02.6]} 34. Qe8 {[%clk 0:01:13]} 34... Qxd4 {[%clk
0:00:02.3]} 35. Qf8+ {[%clk 0:01:11.3]} 1-0

[Event "Late-Titled-Tuesday-Blitz-May-07-2024"]
[Site "Chess.com"]
[Date "2024.05.07"]
[Round "9"]
[White "lluiss"]
[Black "ccccvhhhj"]
[Result "0-1"]
[WhiteElo "2247"]
[BlackElo "2488"]
[TimeControl "180+1"]
[EndTime "15:45:52 PDT"]
[Termination "ccccvhhhj won on time"]

1. Nf3 {[%clk 0:02:58.1]} 1... d5 {[%clk 0:02:59.4]} 2. d4 {[%clk 0:02:56.8]}
2... c6 {[%clk 0:02:57.9]} 3. c4 {[%clk 0:02:56.2]} 3... e6 {[%clk 0:02:58.3]}
4. cxd5 {[%clk 0:02:52.5]} 4... exd5 {[%clk 0:02:58.2]} 5. Bf4 {[%clk
0:02:52.4]} 5... Nf6 {[%clk 0:02:56.2]} 6. e3 {[%clk 0:02:52.4]} 6... Bf5 {[%clk
0:02:56]} 7. Bd3 {[%clk 0:02:50.9]} 7... Bxd3 {[%clk 0:02:56.4]} 8. Qxd3 {[%clk
0:02:50.9]} 8... Bd6 {[%clk 0:02:57.3]} 9. Bxd6 {[%clk 0:02:49.7]} 9... Qxd6
{[%clk 0:02:58.2]} 10. O-O {[%clk 0:02:49.5]} 10... O-O {[%clk 0:02:58]} 11. Ne5
{[%clk 0:02:45.4]} 11... Nbd7 {[%clk 0:02:57.1]} 12. Nxd7 {[%clk 0:02:45.3]}
12... Qxd7 {[%clk 0:02:56.3]} 13. b4 {[%clk 0:02:43.4]} 13... a6 {[%clk
0:02:52]} 14. Nc3 {[%clk 0:02:42.7]} 14... Rfe8 {[%clk 0:02:45.8]} 15. Na4
{[%clk 0:02:42.3]} 15... Ne4 {[%clk 0:02:38]} 16. Nb6 {[%clk 0:02:39.3]} 16...
Qe7 {[%clk 0:02:35.2]} 17. Nxa8 {[%clk 0:02:38.9]} 17... Rxa8 {[%clk 0:02:36.1]}
18. Rfe1 {[%clk 0:02:20.2]} 18... h6 {[%clk 0:02:33.3]} 19. f3 {[%clk
0:02:16.7]} 19... Nf6 {[%clk 0:02:32.2]} 20. e4 {[%clk 0:02:16.1]} 20... Qxb4
{[%clk 0:02:30.5]} 21. Rab1 {[%clk 0:02:01.8]} 21... Qa5 {[%clk 0:02:30.5]} 22.
e5 {[%clk 0:01:56.3]} 22... Nh5 {[%clk 0:01:54.2]} 23. Qf5 {[%clk 0:01:48.8]}
23... g6 {[%clk 0:01:50.5]} 24. Qd7 {[%clk 0:01:45.6]} 24... Qc3 {[%clk
0:01:43.1]} 25. Red1 {[%clk 0:01:16.1]} 25... Nf4 {[%clk 0:01:35.2]} 26. Rxb7
{[%clk 0:01:11.6]} 26... Rf8 {[%clk 0:01:34.3]} 27. Qg4 {[%clk 0:00:59.9]} 27...
Qe3+ {[%clk 0:01:18.9]} 28. Kh1 {[%clk 0:00:44.3]} 28... Ne6 {[%clk 0:01:19.5]}
29. h4 {[%clk 0:00:19.7]} 29... h5 {[%clk 0:01:19.9]} 30. Qg3 {[%clk 0:00:15.5]}
30... Nxd4 {[%clk 0:01:19.8]} 31. Qe1 {[%clk 0:00:15.6]} 31... Qf4 {[%clk
0:01:19.1]} 32. Rb4 {[%clk 0:00:12.4]} 32... c5 {[%clk 0:01:18.6]} 33. Ra4
{[%clk 0:00:09.3]} 33... Re8 {[%clk 0:01:15.7]} 34. e6 {[%clk 0:00:05.5]} 34...
Rxe6 {[%clk 0:01:15.3]} 35. Qf2 {[%clk 0:00:05.1]} 35... Qf6 {[%clk 0:01:08.7]}
36. g3 {[%clk 0:00:02.3]} 36... Re2 {[%clk 0:01:05.4]} 37. Qg1 {[%clk
0:00:02.2]} 37... Qe6 {[%clk 0:01:05.5]} 38. Rf1 {[%clk 0:00:01.4]} 38... Qh3+
{[%clk 0:01:05.5]} 0-1

[Event "Late-Titled-Tuesday-Blitz-May-07-2024"]
[Site "Chess.com"]
[Date "2024.05.07"]
[Round "9"]
[White "dennisodessa"]
[Black "egnfanclub"]
[Result "0-1"]
[WhiteElo "2526"]
[BlackElo "2347"]
[TimeControl "180+1"]
[EndTime "15:45:53 PDT"]
[Termination "egnfanclub won on time"]

1. d4 {[%clk 0:02:48.3]} 1... d5 {[%clk 0:02:59.5]} 2. c4 {[%clk 0:02:49.2]}
2... c6 {[%clk 0:02:59.5]} 3. Nf3 {[%clk 0:02:48.4]} 3... Nf6 {[%clk 0:02:59.9]}
4. Nbd2 {[%clk 0:02:38.2]} 4... e6 {[%clk 0:02:49.4]} 5. e3 {[%clk 0:02:35.3]}
5... Nbd7 {[%clk 0:02:49.6]} 6. b3 {[%clk 0:02:31.2]} 6... Bb4 {[%clk
0:02:46.6]} 7. Bb2 {[%clk 0:02:29.3]} 7... Ne4 {[%clk 0:02:44.8]} 8. a3 {[%clk
0:02:25.2]} 8... Bd6 {[%clk 0:02:29.5]} 9. Nxe4 {[%clk 0:02:13.3]} 9... dxe4
{[%clk 0:02:29]} 10. Ne5 {[%clk 0:02:12.4]} 10... O-O {[%clk 0:01:53.6]} 11. Be2
{[%clk 0:01:39]} 11... c5 {[%clk 0:01:13.4]} 12. Nxd7 {[%clk 0:01:34.3]} 12...
Bxd7 {[%clk 0:01:04.3]} 13. O-O {[%clk 0:01:32.5]} 13... Qc7 {[%clk 0:00:58.7]}
14. dxc5 {[%clk 0:01:31.3]} 14... Bxh2+ {[%clk 0:00:38.5]} 15. Kh1 {[%clk
0:01:30.5]} 15... Rad8 {[%clk 0:00:37.2]} 16. Qd4 {[%clk 0:01:17.7]} 16... f6
{[%clk 0:00:36.8]} 17. Qxe4 {[%clk 0:01:17.8]} 17... Be5 {[%clk 0:00:33.1]} 18.
Bxe5 {[%clk 0:01:16.9]} 18... fxe5 {[%clk 0:00:34]} 19. b4 {[%clk 0:01:08.4]}
19... Bc6 {[%clk 0:00:33.7]} 20. Qg4 {[%clk 0:00:55.9]} 20... Rf6 {[%clk
0:00:33.1]} 21. Rad1 {[%clk 0:00:37.7]} 21... Rdf8 {[%clk 0:00:32.3]} 22. Bd3
{[%clk 0:00:07.8]} 22... e4 {[%clk 0:00:30.8]} 23. Bxe4 {[%clk 0:00:01.9]} 23...
Rh6+ {[%clk 0:00:30.6]} 0-1

[Event "Late-Titled-Tuesday-Blitz-May-07-2024"]
[Site "Chess.com"]
[Date "2024.05.07"]
[Round "9"]
[White "Ajedrez_con_German"]
[Black "PawnEatingZombie"]
[Result "1-0"]
[WhiteElo "2564"]
[BlackElo "2269"]
[TimeControl "180+1"]
[EndTime "15:45:56 PDT"]
[Termination "Ajedrez_con_German won on time"]

1. Nf3 {[%clk 0:02:54.1]} 1... Nf6 {[%clk 0:02:48.3]} 2. b3 {[%clk 0:02:55]}
2... g6 {[%clk 0:02:45.4]} 3. Bb2 {[%clk 0:02:55.2]} 3... Bg7 {[%clk 0:02:46.1]}
4. e3 {[%clk 0:02:55.6]} 4... c5 {[%clk 0:02:45.7]} 5. Be2 {[%clk 0:02:55.6]}
5... O-O {[%clk 0:02:43.4]} 6. c4 {[%clk 0:02:56]} 6... Nc6 {[%clk 0:02:43.6]}
7. O-O {[%clk 0:02:55.9]} 7... b6 {[%clk 0:02:39.8]} 8. d4 {[%clk 0:02:55.6]}
8... cxd4 {[%clk 0:02:39.7]} 9. Nxd4 {[%clk 0:02:56.5]} 9... Nxd4 {[%clk
0:02:38.1]} 10. Qxd4 {[%clk 0:02:55.6]} 10... Bb7 {[%clk 0:02:35.6]} 11. Nc3
{[%clk 0:02:55.6]} 11... d6 {[%clk 0:02:26.7]} 12. Rfd1 {[%clk 0:02:54.5]} 12...
Ne4 {[%clk 0:02:15.7]} 13. Qd3 {[%clk 0:02:52.2]} 13... Nc5 {[%clk 0:02:07.7]}
14. Qc2 {[%clk 0:02:51.5]} 14... a6 {[%clk 0:02:02.5]} 15. Nd5 {[%clk
0:02:46.2]} 15... Bxd5 {[%clk 0:01:57.1]} 16. cxd5 {[%clk 0:02:37.5]} 16... b5
{[%clk 0:01:53.6]} 17. Bxg7 {[%clk 0:02:34.1]} 17... Kxg7 {[%clk 0:01:53.1]} 18.
b4 {[%clk 0:02:26.2]} 18... Na4 {[%clk 0:01:49.8]} 19. Rac1 {[%clk 0:02:14.8]}
19... Rc8 {[%clk 0:01:44.5]} 20. Qd3 {[%clk 0:02:13.9]} 20... Qb6 {[%clk
0:01:41.9]} 21. Qd2 {[%clk 0:02:05.4]} 21... Kg8 {[%clk 0:01:32.2]} 22. Bf3
{[%clk 0:02:04.6]} 22... Qb8 {[%clk 0:01:19.3]} 23. Rc6 {[%clk 0:02:02]} 23...
Nb6 {[%clk 0:00:59]} 24. h4 {[%clk 0:02:00.4]} 24... Qb7 {[%clk 0:00:53.3]} 25.
h5 {[%clk 0:01:58.9]} 25... Nc4 {[%clk 0:00:50]} 26. Qc3 {[%clk 0:01:52.9]}
26... Ne5 {[%clk 0:00:31.4]} 27. Rc1 {[%clk 0:01:48.6]} 27... Nxc6 {[%clk
0:00:28.2]} 28. dxc6 {[%clk 0:01:48.9]} 28... Qb6 {[%clk 0:00:28.4]} 29. h6
{[%clk 0:01:48]} 29... f6 {[%clk 0:00:25.5]} 30. Bd5+ {[%clk 0:01:42.6]} 30...
Kh8 {[%clk 0:00:25.6]} 31. c7 {[%clk 0:01:41]} 31... e5 {[%clk 0:00:13.6]} 32.
Be6 {[%clk 0:01:34.8]} 32... Rfe8 {[%clk 0:00:13]} 33. Bd7 {[%clk 0:01:32.3]}
33... Rf8 {[%clk 0:00:13.1]} 34. g3 {[%clk 0:01:27.1]} 34... Rg8 {[%clk
0:00:11.3]} 35. Bxc8 {[%clk 0:01:25.5]} 35... Rxc8 {[%clk 0:00:11.1]} 36. a3
{[%clk 0:01:25.6]} 36... Qb7 {[%clk 0:00:06.3]} 37. Qc2 {[%clk 0:01:20.1]} 37...
Qd5 {[%clk 0:00:04.4]} 38. Rd1 {[%clk 0:01:17.1]} 38... Qe6 {[%clk 0:00:04.1]}
39. Qc6 {[%clk 0:01:15.7]} 39... Qe7 {[%clk 0:00:01.8]} 40. Qxd6 {[%clk
0:01:09.1]} 40... Qxd6 {[%clk 0:00:01.7]} 41. Rxd6 {[%clk 0:01:09]} 1-0

[Event "Late-Titled-Tuesday-Blitz-May-07-2024"]
[Site "Chess.com"]
[Date "2024.05.07"]
[Round "9"]
[White "andrew-blr"]
[Black "Szparu"]
[Result "0-1"]
[WhiteElo "2596"]
[BlackElo "2895"]
[TimeControl "180+1"]
[EndTime "15:45:57 PDT"]
[Termination "Szparu won on time"]

1. d4 {[%clk 0:01:38.2]} 1... Nf6 {[%clk 0:02:59.5]} 2. c4 {[%clk 0:01:37.1]}
2... c5 {[%clk 0:02:59.9]} 3. d5 {[%clk 0:01:37]} 3... e6 {[%clk 0:03:00.8]} 4.
Nc3 {[%clk 0:01:36.5]} 4... exd5 {[%clk 0:03:01.7]} 5. cxd5 {[%clk 0:01:36.4]}
5... d6 {[%clk 0:03:02.6]} 6. Nf3 {[%clk 0:01:36.2]} 6... g6 {[%clk 0:03:03.3]}
7. h3 {[%clk 0:01:36.2]} 7... a6 {[%clk 0:03:03.9]} 8. a4 {[%clk 0:01:35]} 8...
Bf5 {[%clk 0:03:04.2]} 9. Nd2 {[%clk 0:01:33.1]} 9... Qe7 {[%clk 0:03:04.1]} 10.
Nc4 {[%clk 0:01:24.8]} 10... Nbd7 {[%clk 0:03:01.9]} 11. Bf4 {[%clk 0:01:24.2]}
11... Ne5 {[%clk 0:02:48.9]} 12. Bxe5 {[%clk 0:01:19.6]} 12... dxe5 {[%clk
0:02:48.7]} 13. g4 {[%clk 0:00:50]} 13... Bd7 {[%clk 0:02:48.7]} 14. Bg2 {[%clk
0:00:38.2]} 14... Bg7 {[%clk 0:02:45.2]} 15. O-O {[%clk 0:00:25.9]} 15... O-O
{[%clk 0:02:45.3]} 16. d6 {[%clk 0:00:25.3]} 16... Qe6 {[%clk 0:02:45.7]} 17.
Nb6 {[%clk 0:00:24.4]} 17... Rad8 {[%clk 0:02:45.3]} 18. a5 {[%clk 0:00:23.3]}
18... Bb5 {[%clk 0:02:43]} 19. Nxb5 {[%clk 0:00:21.1]} 19... axb5 {[%clk
0:02:43.9]} 20. Bxb7 {[%clk 0:00:21]} 20... Rxd6 {[%clk 0:02:44.6]} 21. Qc2
{[%clk 0:00:21.1]} 21... e4 {[%clk 0:02:45.2]} 22. Rfd1 {[%clk 0:00:18]} 22...
h5 {[%clk 0:02:44.6]} 23. Rxd6 {[%clk 0:00:17]} 23... Qxd6 {[%clk 0:02:45.5]}
24. g5 {[%clk 0:00:17.2]} 24... Nd7 {[%clk 0:02:44.4]} 25. Nxd7 {[%clk
0:00:15.7]} 25... Qxd7 {[%clk 0:02:45.3]} 26. a6 {[%clk 0:00:15.9]} 26... Qxh3
{[%clk 0:02:44.3]} 27. Qxe4 {[%clk 0:00:15.7]} 27... Bxb2 {[%clk 0:02:30.2]} 28.
Rd1 {[%clk 0:00:15]} 28... Qa3 {[%clk 0:02:21.6]} 29. Rd7 {[%clk 0:00:14.3]}
29... Kg7 {[%clk 0:02:14]} 30. Qd5 {[%clk 0:00:06]} 30... h4 {[%clk 0:01:40]}
31. Bc8 {[%clk 0:00:05.3]} 31... h3 {[%clk 0:01:20]} 32. a7 {[%clk 0:00:04.4]}
32... Bd4 {[%clk 0:01:15.3]} 33. e3 {[%clk 0:00:00.3]} 33... Qa1+ {[%clk
0:00:54.5]} 34. Kh2 {[%clk 0:00:00.2]} 34... Be5+ {[%clk 0:00:55.4]} 0-1

[Event "Late-Titled-Tuesday-Blitz-May-07-2024"]
[Site "Chess.com"]
[Date "2024.05.07"]
[Round "9"]
[White "JG-17"]
[Black "SRob2003"]
[Result "1-0"]
[WhiteElo "2575"]
[BlackElo "2676"]
[TimeControl "180+1"]
[EndTime "15:46:00 PDT"]
[Termination "JG-17 won by resignation"]

1. e4 {[%clk 0:02:51.3]} 1... c5 {[%clk 0:02:59.4]} 2. Nf3 {[%clk 0:02:51.2]}
2... d6 {[%clk 0:02:59]} 3. g3 {[%clk 0:02:51.7]} 3... Nf6 {[%clk 0:02:58.5]} 4.
Bg2 {[%clk 0:02:52.1]} 4... g6 {[%clk 0:02:57.9]} 5. Nc3 {[%clk 0:02:50.9]} 5...
Bg7 {[%clk 0:02:58.4]} 6. d4 {[%clk 0:02:51.6]} 6... cxd4 {[%clk 0:02:52]} 7.
Nxd4 {[%clk 0:02:52.5]} 7... O-O {[%clk 0:02:51.9]} 8. O-O {[%clk 0:02:52.4]}
8... a6 {[%clk 0:02:46.5]} 9. a4 {[%clk 0:02:52]} 9... Qc7 {[%clk 0:02:45.3]}
10. h3 {[%clk 0:02:47.1]} 10... Nc6 {[%clk 0:02:43]} 11. Be3 {[%clk 0:02:39.7]}
11... Ne5 {[%clk 0:02:39.7]} 12. Nd5 {[%clk 0:02:07.1]} 12... Nxd5 {[%clk
0:02:27.3]} 13. exd5 {[%clk 0:02:08]} 13... Nc4 {[%clk 0:02:27.4]} 14. Bc1
{[%clk 0:02:08.5]} 14... Qb6 {[%clk 0:02:17.1]} 15. c3 {[%clk 0:01:57.3]} 15...
Bxd4 {[%clk 0:01:55.7]} 16. Qxd4 {[%clk 0:01:52]} 16... Qxd4 {[%clk 0:01:55.3]}
17. cxd4 {[%clk 0:01:52.6]} 17... Bf5 {[%clk 0:01:52.6]} 18. b3 {[%clk
0:01:45.9]} 18... Na5 {[%clk 0:01:43.7]} 19. Ra3 {[%clk 0:01:46]} 19... Bc2
{[%clk 0:01:38.9]} 20. b4 {[%clk 0:01:31.1]} 20... Nb3 {[%clk 0:01:36.9]} 21.
Bg5 {[%clk 0:01:18]} 21... f6 {[%clk 0:01:35.4]} 22. Be3 {[%clk 0:01:18.6]}
22... b5 {[%clk 0:01:34.9]} 23. a5 {[%clk 0:01:11.6]} 23... Rfc8 {[%clk
0:01:32]} 24. Bf3 {[%clk 0:01:04.7]} 24... Rc3 {[%clk 0:01:26.8]} 25. Bd1 {[%clk
0:00:57.6]} 25... Bxd1 {[%clk 0:01:20.8]} 26. Rxd1 {[%clk 0:00:56.7]} 26... Nxd4
{[%clk 0:01:21.4]} 27. Rxc3 {[%clk 0:00:54.7]} 27... Ne2+ {[%clk 0:01:20.9]} 28.
Kg2 {[%clk 0:00:48.9]} 28... Nxc3 {[%clk 0:01:21.8]} 29. Rd3 {[%clk 0:00:48]}
29... Na4 {[%clk 0:01:21.8]} 30. f4 {[%clk 0:00:26.3]} 30... Rc8 {[%clk
0:01:20.5]} 31. Kf3 {[%clk 0:00:26.5]} 31... Rc4 {[%clk 0:01:19.4]} 32. Rd4
{[%clk 0:00:22.9]} 32... Kf7 {[%clk 0:01:20.3]} 33. Rxc4 {[%clk 0:00:21.8]}
33... bxc4 {[%clk 0:00:55.4]} 34. b5 {[%clk 0:00:22.1]} 34... Nc3 {[%clk
0:00:34.9]} 35. b6 {[%clk 0:00:14.3]} 1-0